bitfinex/quotes_BTCUSD_20250713
["timestamp","ask_amount","ask_price","bid_price","bid_amount"]
[1752436307017,0.89733566,119050.0,119040.0,0.32904]
[1752436307233,0.89733566,119050.0,119040.0,0.361944]
[1752436308641,0.86483566,119050.0,119040.0,0.361944]
[1752436309609,0.202,119050.0,119040.0,0.44737393]
[1752436309838,0.51776783,119050.0,119040.0,0.51147393]
[1752436310352,0.51676783,119050.0,119040.0,0.51147393]
[1752436310714,0.51776783,119050.0,119040.0,0.51147393]
[1752436310935,0.51676783,119050.0,119040.0,0.51147393]
[1752436311131,0.83253566,119050.0,119040.0,0.51147393]
[1752436311372,0.51776783,119050.0,119040.0,0.51147393]
[1752436311782,0.83353566,119050.0,119040.0,0.51147393]
[1752436314513,0.83353566,119050.0,119040.0,0.38367393]
[1752436314737,0.83353566,119050.0,119040.0,0.44729393]
[1752436314945,0.86473566,119050.0,119040.0,0.41438993]
[1752436315929,0.89623566,119050.0,119040.0,0.41438993]
[1752436319846,0.89623566,119050.0,119040.0,0.20124]
[1752436320483,1.55200349,119050.0,119040.0,0.32896]
[1752436320681,1.57502671,119050.0,119040.0,0.32896]
[1752436320880,1.74588657,119050.0,119040.0,0.32896]
[1752436321100,1.66045664,119050.0,119040.0,0.32896]
[1752436321496,1.68564064,119050.0,119040.0,0.32896]
[1752436321701,1.68364064,119050.0,119040.0,0.32896]
[1752436321906,1.68564064,119050.0,119040.0,0.32896]
[1752436323464,0.0654,119040.0,119030.0,0.20124]
[1752436323671,0.38116783,119040.0,119030.0,0.20124]
[1752436323852,0.80659776,119040.0,119030.0,0.20124]
[1752436324621,0.80659776,119040.0,119030.0,0.32896]
[1752436325049,0.82962098,119040.0,119030.0,0.32996]
[1752436326698,0.85480898,119040.0,119030.0,0.32896]
[1752436327102,1.48834464,119040.0,119030.0,0.32896]
[1752436327369,1.49034464,119040.0,119030.0,0.32896]
[1752436335976,1.49034464,119040.0,119030.0,0.361856]
[1752436336417,1.49034464,119040.0,119030.0,0.32896]
[1752436352163,1.57872464,119040.0,119030.0,0.32896]
[1752436352364,1.49034464,119040.0,119030.0,0.32896]
[1752436354994,1.96482485,119040.0,119030.0,0.32896]
[1752436357209,1.96482485,119040.0,119030.0,0.12772]
[1752436359952,1.93963685,119040.0,119030.0,0.12772]
[1752436362022,1.93963685,119040.0,119030.0,0.169624]
[1752436362874,1.93963685,119040.0,119030.0,0.12772]
[1752436363986,1.93963685,119040.0,119030.0,0.12776]
[1752436363987,1.78880692,119040.0,119030.0,0.12776]
[1752436366734,1.89900254,119040.0,119030.0,0.12776]
[1752436367490,1.93210254,119040.0,119030.0,0.12776]
[1752436368750,1.89900254,119040.0,119030.0,0.12776]
[1752436372854,1.93000254,119040.0,119030.0,0.12776]
[1752436373895,0.47721884,119040.0,119030.0,0.238408]
[1752436374128,0.47721884,119040.0,119030.0,0.30562077]
[1752436374129,0.82508747,119040.0,119030.0,0.30562077]
[1752436374548,1.16508747,119040.0,119030.0,0.30562077]
[1752436375503,1.87597932,119040.0,119030.0,0.25727277]
[1752436375871,1.87597932,119040.0,119030.0,0.12776]
[1752436376813,1.87597932,119040.0,119030.0,0.19006]
[1752436377014,1.16508747,119040.0,119030.0,0.19006]
[1752436378823,1.16508747,119040.0,119030.0,0.12776]
[1752436379533,1.16508747,119040.0,119030.0,0.176008]
[1752436379660,1.16508747,119040.0,119030.0,0.239408]
[1752436380719,0.0321,119020.0,119010.0,0.20132]
[1752436380893,1.8270837,119020.0,119010.0,0.329]
[1752436381104,1.94912932,119020.0,119010.0,0.329]
[1752436381307,1.94912932,119020.0,119010.0,0.20132]
[1752436381581,1.94912932,119020.0,119010.0,0.329]
[1752436381749,1.94912932,119020.0,119010.0,0.36195387]
[1752436381956,1.88382932,119020.0,119010.0,0.36195387]
[1752436382943,1.09396156,119020.0,119010.0,0.36195387]
[1752436383847,1.09396156,119020.0,119010.0,0.329]
[1752436385059,1.12616156,119020.0,119010.0,0.329]
[1752436386160,1.09396156,119020.0,119010.0,0.329]
[1752436390866,1.12656156,119020.0,119010.0,0.329]
[1752436392416,1.09396156,119020.0,119010.0,0.329]
[1752436394919,1.09396156,119020.0,119010.0,0.36195387]
[1752436395281,0.77800359,119020.0,119010.0,0.36195387]
[1752436395510,0.77800359,119020.0,119010.0,0.42255387]
[1752436395708,1.09396156,119020.0,119010.0,0.329]
[1752436396023,1.12696156,119020.0,119010.0,0.329]
[1752436396256,1.15966156,119020.0,119010.0,0.329]
[1752436396786,1.24509149,119020.0,119010.0,0.329]
[1752436396991,1.26768965,119020.0,119010.0,0.329]
[1752436397424,1.3074225,119020.0,119010.0,0.20132]
[1752436397631,0.42024085,119010.0,119000.0,0.2018587]
[1752436397838,0.84422691,119010.0,119000.0,0.3295387]
[1752436398038,0.96913612,119010.0,119000.0,0.3295387]
[1752436398463,1.60105206,119010.0,119000.0,0.3295387]
[1752436398905,1.28509409,119010.0,119000.0,0.3295387]
[1752436399115,1.28709409,119010.0,119000.0,0.3295387]
[1752436399536,1.28909409,119010.0,119000.0,0.3295387]
[1752436399937,1.28909409,119010.0,119000.0,0.36249257]
[1752436399938,1.18912331,119010.0,119000.0,0.36249257]
[1752436400148,1.16652515,119010.0,119000.0,0.3295387]
[1752436403950,1.16452515,119010.0,119000.0,0.3295387]
[1752436404482,1.07952515,119010.0,119000.0,0.3295387]
[1752436405534,1.16495508,119010.0,119000.0,0.2018587]
[1752436405715,1.2030888,119010.0,119000.0,0.3295387]
[1752436405893,1.51904677,119010.0,119000.0,0.3295387]
[1752436406094,1.2030888,119010.0,119000.0,0.3295387]
[1752436407066,1.2282828,119010.0,119000.0,0.3295387]
[1752436410881,1.54424077,119010.0,119000.0,0.3295387]
[1752436411101,1.2282828,119010.0,119000.0,0.3295387]
[1752436413382,1.2282828,119010.0,119000.0,0.36249257]
[1752436413774,1.2282828,119010.0,119000.0,0.3295387]
[1752436415759,1.19014908,119010.0,119000.0,0.3295387]
[1752436417115,0.55823314,119010.0,119000.0,0.3295387]
[1752436417334,1.12444908,119010.0,119000.0,0.3295387]
[1752436417954,1.15744908,119010.0,119000.0,0.3295387]
[1752436419458,1.15744908,119010.0,119000.0,0.36249257]
[1752436419691,1.15744908,119010.0,119000.0,0.3295387]
[1752436419692,1.18824908,119010.0,119000.0,0.3295387]
[1752436419904,1.16305508,119010.0,119000.0,0.3295387]
[1752436427422,1.16305508,119010.0,119000.0,0.3315887]
[1752436433715,1.18117106,119010.0,119000.0,0.3315887]
[1752436433939,1.16305508,119010.0,119000.0,0.3315887]
[1752436434853,1.16305508,119010.0,119000.0,0.36474757]
[1752436437053,1.16305508,119010.0,119000.0,0.3315887]
[1752436441762,1.36305508,119010.0,119000.0,0.3315887]
[1752436453348,1.38117639,119010.0,119000.0,0.3315887]
[1752436453929,1.36305508,119010.0,119000.0,0.3315887]
[1752436454167,1.38117641,119010.0,119000.0,0.3315887]
[1752436454521,1.36305508,119010.0,119000.0,0.3315887]
[1752436455136,1.38117616,119010.0,119000.0,0.3315887]
[1752436457449,1.39571701,119010.0,119000.0,0.3315887]
[1752436460142,1.32759593,119010.0,119000.0,0.3315887]
[1752436461039,2.11809207,119010.0,119000.0,0.3315887]
[1752436464629,2.09600708,119010.0,119000.0,0.20136]
[1752436464833,2.09600708,119010.0,118970.0,0.0658]
[1752436464834,0.0313,119000.0,118970.0,0.0658]
[1752436465040,1.42241208,118980.0,118970.0,0.0658]
[1752436465246,1.42241208,118980.0,118970.0,0.27374]
[1752436465421,1.51254593,118980.0,118970.0,0.27374]
[1752436465782,1.51254593,118980.0,118970.0,0.52906]
[1752436467164,0.72246547,118980.0,118970.0,0.52906]
[1752436467980,0.72346547,118980.0,118970.0,0.52906]
[1752436468331,0.72346547,118980.0,118970.0,0.53006]
[1752436468527,0.72346547,118980.0,118970.0,0.52906]
[1752436468764,0.40729966,118980.0,118970.0,0.52906]
[1752436474681,0.40729966,118980.0,118970.0,0.5291]
[1752436479448,0.40729966,118980.0,118970.0,0.4964]
[1752436479798,0.72346547,118980.0,118970.0,0.4964]
[1752436479998,0.72346547,118980.0,118970.0,0.4633]
[1752436482474,0.72346547,118980.0,118970.0,0.45672]
[1752436482682,0.78466547,118980.0,118970.0,0.45672]
[1752436484499,0.75406547,118980.0,118970.0,0.45672]
[1752436487979,0.77926347,118980.0,118970.0,0.45672]
[1752436488982,1.56972283,118980.0,118970.0,0.45672]
[1752436489645,1.56972283,118980.0,118970.0,0.502392]
[1752436490603,1.60112283,118980.0,118970.0,0.502392]
[1752436490979,0.88972734,118980.0,118970.0,0.502392]
[1752436491591,1.60112283,118980.0,118970.0,0.502392]
[1752436492860,1.60112283,118980.0,118970.0,0.45672]
[1752436493596,1.94112283,118980.0,118970.0,0.45672]
[1752436498690,1.16772734,118980.0,118970.0,0.45672]
[1752436498871,1.20022734,118980.0,118970.0,0.45672]
[1752436501037,1.12115605,118980.0,118970.0,0.45672]
[1752436501342,1.12115605,118980.0,118970.0,0.502392]
[1752436502070,1.08865605,118980.0,118970.0,0.502392]
[1752436502566,0.77249395,118980.0,118970.0,0.502392]
[1752436502714,0.77249395,118980.0,118970.0,0.565792]
[1752436502919,0.74729595,118980.0,118970.0,0.565792]
[1752436503507,0.43113385,118980.0,118970.0,0.565792]
[1752436503708,0.74729595,118980.0,118970.0,0.565792]
[1752436508481,0.74729595,118980.0,118970.0,0.565712]
[1752436510239,0.74729595,118980.0,118970.0,0.534012]
[1752436518981,0.74729595,118980.0,118970.0,0.502312]
[1752436521073,1.14235639,118980.0,118970.0,0.502312]
[1752436521282,1.14235639,118980.0,118970.0,0.45664]
[1752436523955,1.14235639,118980.0,118970.0,0.48744]
[1752436525089,1.14235639,118980.0,118970.0,0.51804]
[1752436525090,0.90528221,118980.0,118970.0,0.51804]
[1752436526768,1.14235639,118980.0,118970.0,0.51804]
[1752436527164,0.74720642,118980.0,118970.0,0.51804]
[1752436527381,0.74720642,118980.0,118970.0,0.569844]
[1752436530115,0.74720642,118980.0,118970.0,0.539244]
[1752436530685,0.74720642,118980.0,118970.0,0.571644]
[1752436531802,0.74720642,118980.0,118970.0,0.539244]
[1752436533351,0.74720642,118980.0,118970.0,0.508444]
[1752436539816,0.74720642,118980.0,118970.0,0.538944]
[1752436541852,0.74720642,118980.0,118970.0,0.508444]
[1752436545082,0.74720642,118980.0,118970.0,0.572344]
[1752436545650,0.74720642,118980.0,118970.0,0.541244]
[1752436546616,0.74720642,118980.0,118970.0,0.508444]
[1752436546820,1.12697899,118980.0,118970.0,0.508444]
[1752436547021,1.20621044,118980.0,118970.0,0.508444]
[1752436547245,1.91758703,118980.0,118970.0,0.45664]
[1752436549086,1.12721337,118980.0,118970.0,0.45664]
[1752436552980,0.81102361,118980.0,118970.0,0.45664]
[1752436553382,0.81102361,118980.0,118970.0,0.502304]
[1752436560132,1.12721337,118980.0,118970.0,0.502304]
[1752436560328,1.17343391,118980.0,118970.0,0.502304]
[1752436562081,1.17343391,118980.0,118970.0,0.24495344]
[1752436562307,1.17343391,118980.0,118970.0,0.2014]
[1752436563269,1.17343391,118980.0,118970.0,0.45648]
[1752436564189,0.79354415,118980.0,118970.0,0.45648]
[1752436564419,0.79354415,118980.0,118970.0,0.51938]
[1752436564663,0.79354415,118980.0,118970.0,0.45648]
[1752436564879,0.79354415,118980.0,118970.0,0.538918]
[1752436565090,0.79354415,118980.0,118970.0,0.571318]
[1752436569466,0.79354415,118980.0,118970.0,0.508418]
[1752436570306,0.82524415,118980.0,118970.0,0.508418]
[1752436570515,0.79354415,118980.0,118970.0,0.508418]
[1752436571683,0.80311767,118980.0,118970.0,0.508418]
[1752436574357,0.80311767,118980.0,118970.0,0.45648]
[1752436574561,0.86551767,118980.0,118970.0,0.45648]
[1752436575047,1.18170743,118980.0,118970.0,0.45648]
[1752436575434,1.2053003,118980.0,118970.0,0.45648]
[1752436576805,0.88911054,118980.0,118970.0,0.45648]
[1752436577011,1.2053003,118980.0,118970.0,0.502128]
[1752436579582,1.2053003,118980.0,118970.0,0.45648]
[1752436587813,1.20480136,118980.0,118970.0,0.45648]
[1752436589729,1.18120849,118980.0,118970.0,0.45648]
[1752436593142,1.97155515,118980.0,118970.0,0.45648]
[1752436621090,2.0951188,118980.0,118970.0,0.45636]
[1752436621308,0.0627,118960.0,118930.0,0.0615]
[1752436621516,0.34,118950.0,118940.0,0.2014]
[1752436622615,1.05136309,118950.0,118940.0,0.45636995]
[1752436623579,1.05136309,118950.0,118940.0,0.45836995]
[1752436623797,1.05136309,118950.0,118940.0,0.46036995]
[1752436625694,0.81424206,118950.0,118940.0,0.46036995]
[1752436625911,0.81424206,118950.0,118940.0,0.51222925]
[1752436626128,0.81424206,118950.0,118940.0,0.51122925]
[1752436626556,0.81424206,118950.0,118940.0,0.51022925]
[1752436627206,0.84424206,118950.0,118940.0,0.51122925]
[1752436627662,1.08136309,118950.0,118940.0,0.51022925]
[1752436629234,1.05136309,118950.0,118940.0,0.51022925]
[1752436629655,1.08136309,118950.0,118940.0,0.51022925]
[1752436631021,0.84424206,118950.0,118940.0,0.51022925]
[1752436631557,1.08136309,118950.0,118940.0,0.51022925]
[1752436631764,1.11456309,118950.0,118940.0,0.51022925]
[1752436632205,1.19999302,118950.0,118940.0,0.45636995]
[1752436637037,0.92967199,118950.0,118940.0,0.45636995]
[1752436639049,1.16679302,118950.0,118940.0,0.45636995]
[1752436639727,1.19729302,118950.0,118910.0,0.00422171]
[1752436639940,0.4005,118950.0,118940.0,0.20144]
[1752436640119,0.48592993,118950.0,118940.0,0.20144]
[1752436640982,0.48592993,118950.0,118940.0,0.45636]
[1752436641190,1.19729302,118950.0,118940.0,0.45636]
[1752436653493,1.22249802,118950.0,118940.0,0.45636]
[1752436653924,1.19729302,118950.0,118940.0,0.45636]
[1752436654252,1.22249802,118950.0,118940.0,0.45636]
[1752436656358,1.93386111,118950.0,118940.0,0.45636]
[1752436658594,1.22249802,118950.0,118940.0,0.45636]
[1752436661210,1.19249802,118950.0,118940.0,0.20144]
[1752436661830,1.22259802,118950.0,118940.0,0.20144]
[1752436662299,1.22259802,118950.0,118940.0,0.221584]
[1752436662504,1.22259802,118950.0,118940.0,0.476464]
[1752436663841,1.27296802,118950.0,118940.0,0.476464]
[1752436664044,1.22259802,118950.0,118940.0,0.476464]
[1752436669667,1.22259802,118950.0,118940.0,0.45632]
[1752436672967,1.25749802,118950.0,118940.0,0.45632]
[1752436673866,1.30786802,118950.0,118940.0,0.45632]
[1752436674015,1.25749802,118950.0,118940.0,0.45632]
[1752436676972,1.94639483,118950.0,118940.0,0.20148]
[1752436677205,1.94639483,118950.0,118890.0,0.0049]
[1752436677381,0.34,118910.0,118900.0,0.0021026]
[1752436677526,0.34,118910.0,118900.0,0.0070026]
[1752436677944,0.34,118910.0,118900.0,0.2618426]
[1752436678148,0.34,118910.0,118900.0,0.29447566]
[1752436678577,0.81424206,118910.0,118900.0,0.29747566]
[1752436678991,0.81424206,118910.0,118900.0,0.29257566]
[1752436679420,0.81424206,118910.0,118900.0,0.29661566]
[1752436680272,0.82339053,118910.0,118900.0,0.29661566]
[1752436681098,0.66557879,118910.0,118900.0,0.29661566]
[1752436685205,0.72917879,118910.0,118900.0,0.49809566]
[1752436686454,0.72917879,118910.0,118900.0,0.37065566]
[1752436687076,0.72917879,118910.0,118900.0,0.24325566]
[1752436687216,0.72917879,118910.0,118900.0,0.37065566]
[1752436690051,0.72917879,118910.0,118900.0,0.20852]
[1752436690267,0.72917879,118910.0,118900.0,0.33592]
[1752436692977,0.66557879,118910.0,118900.0,0.42624993]
[1752436693494,0.66557879,118910.0,118900.0,0.42134993]
[1752436693717,0.00914847,118910.0,118900.0,0.42624993]
[1752436693976,0.00914847,118910.0,118900.0,0.46888333]
[1752436694211,0.65643032,118910.0,118900.0,0.46888333]
[1752436696066,0.66533877,118910.0,118900.0,0.46888333]
[1752436697603,0.34890845,118910.0,118900.0,0.46888333]
[1752436697865,0.66533877,118910.0,118900.0,0.46488333]
[1752436698078,0.66533877,118910.0,118900.0,0.46688333]
[1752436698282,0.66533877,118910.0,118900.0,0.46388333]
[1752436698485,0.66533877,118910.0,118900.0,0.46588333]
[1752436699697,0.66533877,118910.0,118900.0,0.46098333]
[1752436705036,0.58618701,118910.0,118900.0,0.46098333]
[1752436708313,0.85666557,118910.0,118900.0,0.46098333]
[1752436708522,0.88956557,118910.0,118900.0,0.46098333]
[1752436711501,0.89473557,118910.0,118900.0,0.29300993]
[1752436711720,0.89473557,118910.0,118900.0,0.42036993]
[1752436712144,0.89473557,118910.0,118900.0,0.41836993]
[1752436712359,0.89473557,118910.0,118900.0,0.41936993]
[1752436713071,0.73663275,118910.0,118900.0,0.41736993]
[1752436713281,0.73663275,118910.0,118900.0,0.45911533]
[1752436713723,0.73663275,118910.0,118900.0,0.45811533]
[1752436713927,0.73663275,118910.0,118900.0,0.45605533]
[1752436714135,0.73663275,118910.0,118900.0,0.3706254]
[1752436714993,0.73606298,118910.0,118900.0,0.3706254]
[1752436731380,0.73606298,118910.0,118900.0,0.32888]
[1752436733051,1.13185878,118910.0,118900.0,0.32888]
[1752436733500,1.92953881,118910.0,118900.0,0.32888]
[1752436733722,1.21728871,118910.0,118900.0,0.32888]
[1752436733952,1.24199847,118910.0,118900.0,0.32888]
[1752436734168,0.52974837,118910.0,118900.0,0.36177641]
[1752436734381,1.24199847,118910.0,118900.0,0.36177641]
[1752436735010,0.84631543,118910.0,118900.0,0.36177641]
[1752436735852,0.84631543,118910.0,118900.0,0.32888]
[1752436738058,1.16288249,118910.0,118900.0,0.32888]
[1752436738501,0.52974837,118910.0,118900.0,0.32888]
[1752436738718,1.16288249,118910.0,118900.0,0.32888]
[1752436741295,1.17742334,118910.0,118900.0,0.32888]
[1752436743689,1.18142334,118910.0,118900.0,0.32888]
[1752436744099,1.18442334,118910.0,118900.0,0.32888]
[1752436746070,1.23479334,118910.0,118900.0,0.32888]
[1752436746718,1.23479334,118910.0,118900.0,0.36177641]
[1752436746954,1.23479334,118910.0,118900.0,0.32888]
[1752436748452,1.23779334,118910.0,118900.0,0.32888]
[1752436750187,0.39037,118900.0,118890.0,8.405e-05]
[1752436750422,1.17238405,118900.0,118890.0,0.20160405]
[1752436750651,1.17557405,118900.0,118890.0,0.20152]
[1752436750900,0.0614,118880.0,118870.0,0.00360069]
[1752436751157,1.62201405,118880.0,118870.0,0.20561817]
[1752436751359,1.62201405,118880.0,118870.0,0.46165817]
[1752436751360,1.12520405,118880.0,118870.0,0.46165817]
[1752436751788,0.50661078,118880.0,118870.0,0.46165817]
[1752436751996,1.45631196,118880.0,118870.0,0.46165817]
[1752436752450,1.45631196,118880.0,118870.0,0.45805748]
[1752436752654,0.41594085,118870.0,118860.0,0.002]
[1752436752869,0.0312,118860.0,118850.0,0.0004]
[1752436753093,1.12201405,118860.0,118850.0,0.0004]
[1752436753300,1.12520405,118860.0,118850.0,0.0004]
[1752436753735,1.12520405,118860.0,118850.0,0.25844]
[1752436754793,1.12520405,118860.0,118850.0,0.28449]
[1752436755213,1.12520405,118860.0,118850.0,0.48605]
[1752436755373,1.12620405,118860.0,118850.0,0.48605]
[1752436755994,1.12620405,118860.0,118850.0,0.46]
[1752436756561,0.49306993,118860.0,118850.0,0.46]
[1752436756765,1.12620405,118860.0,118850.0,0.46]
[1752436757031,1.12920405,118860.0,118850.0,0.46]
[1752436759208,1.1437449,118860.0,118850.0,0.46]
[1752436760392,0.41484085,118850.0,118840.0,0.00206]
[1752436760593,0.41484085,118850.0,118840.0,0.20366]
[1752436760594,0.50551078,118850.0,118840.0,0.20366]
[1752436760767,0.50551078,118850.0,118840.0,0.222006]
[1752436760996,0.50551078,118850.0,118840.0,0.2016]
[1752436760997,1.1406449,118850.0,118840.0,0.2016]
[1752436761419,1.1406449,118850.0,118840.0,0.46012]
[1752436761779,1.1416449,118850.0,118840.0,0.46012]
[1752436762193,1.16666924,118850.0,118840.0,0.46012]
[1752436762403,0.53453512,118850.0,118840.0,0.506132]
[1752436762606,1.16766924,118850.0,118840.0,0.506132]
[1752436762836,1.15312839,118850.0,118840.0,0.506132]
[1752436763437,0.51999427,118850.0,118840.0,0.506132]
[1752436763844,1.15312839,118850.0,118840.0,0.506132]
[1752436763999,1.15312839,118850.0,118840.0,0.46012]
[1752436765493,0.72086706,118850.0,118840.0,0.46043]
[1752436765909,0.69076706,118850.0,118840.0,0.46043]
[1752436766526,0.72366706,118850.0,118840.0,0.46043]
[1752436769363,1.04541412,118850.0,118840.0,0.46012]
[1752436769985,1.04541412,118850.0,118840.0,0.33096]
[1752436770734,1.04541412,118850.0,118840.0,0.364056]
[1752436771140,1.04541412,118850.0,118840.0,0.33096]
[1752436771343,1.15635156,118850.0,118840.0,0.2016]
[1752436771691,1.15635156,118850.0,118840.0,0.33104]
[1752436771897,1.17089241,118850.0,118840.0,0.33104]
[1752436772095,1.17089241,118850.0,118840.0,0.2016]
[1752436772298,1.17089241,118850.0,118840.0,0.33104]
[1752436772703,0.0643,118820.0,118790.0,0.10503]
[1752436772909,0.0643,118820.0,118800.0,0.33108]
[1752436772910,0.0314,118810.0,118800.0,0.33108]
[1752436773117,0.68796706,118810.0,118800.0,0.33139]
[1752436773677,0.72036706,118810.0,118800.0,0.33139]
[1752436773892,1.03892412,118810.0,118800.0,0.20191]
[1752436774108,1.03892412,118810.0,118800.0,0.33516]
[1752436774109,1.04248149,118810.0,118800.0,0.33516]
[1752436774325,1.12791142,118810.0,118800.0,0.46472]
[1752436774539,1.13680477,118810.0,118800.0,0.46472]
[1752436775177,1.57659583,118810.0,118800.0,0.46472]
[1752436775390,1.17493849,118810.0,118800.0,0.46072]
[1752436775607,1.16039764,118810.0,118800.0,0.46072]
[1752436775851,1.16039764,118810.0,118800.0,0.46372]
[1752436776095,0.35454085,118800.0,118770.0,4.98858714]
[1752436776302,0.49093441,118790.0,118780.0,0.20164]
[1752436776512,0.49387993,118790.0,118780.0,0.20164]
[1752436776940,0.49387993,118790.0,118780.0,0.20195]
[1752436777394,0.34,118790.0,118780.0,0.46406]
[1752436777610,0.31656706,118790.0,118780.0,0.54948993]
[1752436778020,0.31656706,118790.0,118780.0,0.46387]
[1752436778242,0.65656706,118790.0,118780.0,0.46395]
[1752436778665,0.65656706,118790.0,118780.0,0.46414]
[1752436779296,0.65656706,118790.0,118780.0,0.54956993]
[1752436780390,0.65156706,118790.0,118780.0,0.54956993]
[1752436781278,0.65156706,118790.0,118780.0,0.55156993]
[1752436781711,0.31656706,118800.0,118780.0,0.55156993]
[1752436781922,0.00049737,118810.0,118790.0,0.08561993]
[1752436782149,0.00049737,118810.0,118800.0,0.26086]
[1752436782396,0.31706443,118810.0,118800.0,0.34628993]
[1752436782629,0.31706443,118810.0,118800.0,0.36083078]
[1752436782630,0.00049737,118810.0,118800.0,0.36083078]
[1752436782847,0.39274267,118830.0,118800.0,0.36083078]
[1752436783063,0.06721277,118830.0,118810.0,0.08772412]
[1752436783276,0.37656857,118830.0,118820.0,0.26083]
[1752436783512,0.06721277,118830.0,118820.0,0.34644993]
[1752436784210,0.37856857,118850.0,118820.0,0.34644993]
[1752436784432,0.37856857,118850.0,118830.0,0.08772377]
[1752436784644,0.71856857,118850.0,118840.0,0.46243]
[1752436784856,0.71856857,118850.0,118840.0,0.54804993]
[1752436785291,1.0370112,118850.0,118840.0,0.46243]
[1752436785514,1.1062612,118850.0,118840.0,0.46212]
[1752436785936,1.1062612,118850.0,118840.0,0.46226918]
[1752436786151,1.1062612,118850.0,118840.0,0.50950845]
[1752436787476,1.1112612,118850.0,118840.0,0.50950845]
[1752436788555,1.1112612,118850.0,118840.0,0.46226918]
[1752436790754,1.13485407,118850.0,118840.0,0.46190918]
[1752436793135,0.35455082,118840.0,118800.0,0.00019]
[1752436793356,0.0639,118830.0,118810.0,0.28706993]
[1752436793523,0.0639,118830.0,118820.0,0.00031]
[1752436793944,0.06696,118830.0,118820.0,0.00031]
[1752436794396,0.06696,118830.0,118820.0,0.26023]
[1752436794602,0.7163158,118830.0,118820.0,0.26023]
[1752436794968,0.7173158,118830.0,118820.0,0.26023]
[1752436795142,0.7173158,118830.0,118820.0,0.31435229]
[1752436795590,0.7193058,118830.0,118820.0,0.31435229]
[1752436796845,0.7203058,118830.0,118820.0,0.31435229]
[1752436800434,0.6513558,118830.0,118820.0,0.31435229]
[1752436801642,0.7164558,118830.0,118820.0,0.31435229]
[1752436802285,0.7215458,118830.0,118820.0,0.25992]
[1752436802493,0.7215458,118830.0,118820.0,0.26023]
[1752436802705,0.7193958,118830.0,118820.0,0.26023]
[1752436802924,0.7215458,118830.0,118820.0,0.26023]
[1752436803139,0.7195458,118830.0,118820.0,0.26023]
[1752436803348,0.7195458,118830.0,118820.0,0.31495999]
[1752436806816,0.7173958,118830.0,118820.0,0.31495999]
[1752436810533,0.41004,118830.0,118820.0,0.31495999]
[1752436810753,0.7193958,118830.0,118820.0,0.31495999]
[1752436811187,0.72696732,118830.0,118820.0,0.31495999]
[1752436811600,0.72402732,118830.0,118820.0,0.31495999]
[1752436812494,0.342,118830.0,118820.0,0.40057992]
[1752436812687,0.65892732,118830.0,118820.0,0.40057992]
[1752436817031,0.65892732,118830.0,118820.0,0.40038992]
[1752436817697,0.72961732,118830.0,118820.0,0.34565993]
[1752436817924,0.72746732,118830.0,118820.0,0.34565993]
[1752436818142,0.72452732,118830.0,118820.0,0.34565993]
[1752436819900,0.72746732,118830.0,118820.0,0.07853193]
[1752436820960,0.72746732,118830.0,118820.0,0.33761193]
[1752436821203,0.65892732,118830.0,118820.0,0.39153712]
[1752436829329,0.65892732,118830.0,118820.0,0.39157712]
[1752436829573,0.87971002,118830.0,118820.0,0.25896]
[1752436829785,1.22023021,118830.0,118820.0,0.33112]
[1752436830683,1.21923021,118830.0,118820.0,0.33112]
[1752436830901,1.21923021,118830.0,118820.0,0.20168]
[1752436831120,1.22023021,118830.0,118820.0,0.33124]
[1752436831340,1.22023021,118830.0,118820.0,0.364364]
[1752436831547,1.21923021,118830.0,118820.0,0.234804]
[1752436831751,1.22123021,118830.0,118820.0,0.364324]
[1752436832401,1.21923021,118830.0,118820.0,0.364324]
[1752436832611,1.22323021,118830.0,118820.0,0.364324]
[1752436833019,0.89797454,118830.0,118820.0,0.364324]
[1752436834948,0.90097454,118830.0,118820.0,0.364324]
[1752436835630,0.90497454,118830.0,118820.0,0.364324]
[1752436837953,0.59537557,118830.0,118820.0,0.364324]
[1752436838199,0.90497454,118830.0,118820.0,0.364324]
[1752436838627,0.90497454,118830.0,118820.0,0.3312]
[1752436843119,0.83776177,118830.0,118820.0,0.3312]
[1752436843563,0.86299277,118830.0,118820.0,0.3312]
[1752436845416,0.86299277,118830.0,118820.0,0.20168]
[1752436845641,0.86299277,118830.0,118820.0,0.33116]
[1752436845875,0.86299277,118830.0,118820.0,0.20168]
[1752436846080,0.86299277,118830.0,118820.0,0.33112]
[1752436847256,0.86299277,118830.0,118820.0,0.364232]
[1752436848523,0.86299277,118830.0,118820.0,0.33112]
[1752436850595,0.86299277,118830.0,118820.0,0.33104]
[1752436853175,1.1874506,118830.0,118820.0,0.33104]
[1752436854102,1.16385773,118830.0,118820.0,0.33104]
[1752436856565,1.16385773,118830.0,118820.0,0.33092]
[1752436857234,1.16385773,118830.0,118820.0,0.364012]
[1752436857910,0.0618,118820.0,118800.0,0.00014974]
[1752436858135,0.0618,118790.0,118780.0,0.20168]
[1752436858379,0.80846281,118790.0,118780.0,0.33096]
[1752436858631,1.15175673,118790.0,118780.0,0.33096]
[1752436858842,1.15175673,118790.0,118780.0,0.40194662]
[1752436859056,1.17710513,118790.0,118780.0,0.33096]
[1752436859689,1.15175673,118790.0,118780.0,0.33092]
[1752436859918,0.83472833,118790.0,118780.0,0.33092]
[1752436861442,1.15175673,118790.0,118780.0,0.33092]
[1752436861655,0.83472833,118790.0,118780.0,0.33092]
[1752436862090,0.83472833,118790.0,118780.0,0.33392]
[1752436862308,1.15175673,118790.0,118780.0,0.33392]
[1752436863882,1.17648479,118790.0,118780.0,0.33392]
[1752436864727,1.17648479,118790.0,118780.0,0.20468]
[1752436864942,1.21430768,118790.0,118780.0,0.33392]
[1752436865592,0.47048085,118780.0,118770.0,4.98908451]
[1752436865814,1.19499758,118780.0,118770.0,4.98908451]
[1752436866020,1.14455758,118780.0,118770.0,4.98908451]
[1752436866269,1.19109284,118780.0,118770.0,4.9806781]
[1752436866484,1.19109284,118780.0,118770.0,4.97227169]
[1752436866699,1.19109284,118780.0,118770.0,5.10195169]
[1752436866916,1.19109284,118780.0,118770.0,5.09354528]
[1752436867140,1.17083962,118780.0,118770.0,5.09354528]
[1752436867366,1.17083962,118780.0,118770.0,5.08513887]
[1752436867808,1.17083962,118780.0,118770.0,5.07673246]
[1752436868016,1.17283962,118780.0,118770.0,5.07673246]
[1752436868232,1.17283962,118780.0,118770.0,5.06832605]
[1752436868651,1.17283962,118780.0,118770.0,5.05991964]
[1752436868860,1.17283962,118780.0,118770.0,5.05151323]
[1752436869286,1.17283962,118780.0,118770.0,5.04310682]
[1752436869703,1.17283962,118780.0,118770.0,5.03470041]